fUSD/lending_fUSD_20241011
["ID","MTS","AMOUNT","RATE_DAILY","PERIOD"]
[340146817,1728679855761,-406.57994561,0.00028219,2]
[340146818,1728679855770,-520.57123704,0.00028219,2]
[340146819,1728679855779,-500.0,0.00028219,2]
[340146820,1728679855788,-540.56799766,0.00028219,2]
[340146821,1728679855797,-503.2117145,0.00028219,2]
[340146822,1728679855806,-517.65473007,0.00028219,2]
[340146823,1728679855814,-165.702964,0.00028219,7]
[340146824,1728679855824,-522.6313431,0.00028219,2]
[340146825,1728679855833,-507.34367408,0.00028219,2]
[340146826,1728679855842,-151.0,0.00028219,7]
[340146827,1728679855851,-515.04439284,0.00028219,2]
[340146828,1728679855860,-500.0,0.00028219,2]
[340146829,1728679855870,-622.37055439,0.00028219,2]
[340146830,1728679855879,-500.0,0.00028219,2]
[340146831,1728679855890,-517.75935906,0.00028219,2]
[340146832,1728679855902,-520.73960601,0.00028219,2]
[340146833,1728679855913,-528.25088551,0.00028219,2]
[340146834,1728679855922,-500.0,0.00028219,2]
[340146835,1728679855931,-523.00209206,0.00028219,2]
[340146836,1728679855940,-529.12526195,0.00028219,2]
[340146837,1728679855949,-519.03034084,0.00028219,2]
[340146838,1728679855959,-519.0835482,0.00028219,2]
[340146839,1728679855970,-151.0,0.00028219,7]
[340146840,1728679855981,-524.86602898,0.00028219,2]
[340146841,1728679855990,-500.0,0.00028219,2]
[340146842,1728679856102,-540.53803781,0.00028219,2]
[340146843,1728679856111,-514.22971357,0.00028219,2]
[340146844,1728679856120,-500.0,0.00028219,2]
[340146845,1728679856129,-151.0,0.00028219,7]
[340146846,1728679856138,-519.80349788,0.00028219,2]
[340146847,1728679856147,-500.0,0.00028219,2]
[340146848,1728679856156,-500.0,0.00028219,2]
[340146849,1728679856166,-541.09926261,0.00028219,2]
[340146850,1728679856175,-511.50287966,0.00028219,2]
[340146851,1728679856184,-500.0,0.00028219,2]
[340146852,1728679856193,-240.72029816,0.00028219,2]
[340146853,1728679856203,-506.7697119,0.00028219,2]
[340146854,1728679856211,-509.22592815,0.00028219,2]
[340146855,1728679856220,-526.5,0.00028219,2]
[340146856,1728679856230,-500.0,0.00028219,2]
[340146857,1728679856240,-504.21566146,0.00028219,2]
[340146858,1728679856250,-508.57019152,0.00028219,2]
[340146859,1728679856259,-531.68110417,0.00028219,2]
[340146860,1728679856268,-581.15812755,0.00028219,2]
[340146861,1728679856277,-518.991381,0.00028219,2]
[340146862,1728679856288,-151.0,0.00028219,7]
[340146863,1728679856297,-511.35658147,0.00028219,2]
[340146864,1728679856307,-505.95696547,0.00028219,2]
[340146865,1728679856317,-517.37398075,0.00028219,2]
[340146866,1728679856328,-507.30345042,0.00028219,2]
[340146867,1728679856339,-508.09324635,0.00028219,2]
[340146868,1728679856349,-151.0,0.00028219,7]
[340146869,1728679856359,-640.69249713,0.00028219,2]
[340146870,1728679856370,-520.0269295,0.00028219,2]
[340146871,1728679856379,-500.0,0.00028219,2]
[340146872,1728679856389,-151.0,0.00028219,7]
[340146873,1728679856399,-509.03245136,0.00028219,2]
[340146874,1728679856409,-569.38285743,0.00028219,2]
[340146875,1728679856418,-525.89797306,0.00028219,2]
[340146876,1728679856428,-529.06212772,0.00028219,2]
[340146877,1728679856438,-608.49296306,0.00028219,2]
[340146878,1728679856447,-505.18917977,0.00028219,2]
[340146879,1728679856456,-525.32193813,0.00028219,2]
[340146880,1728679856465,-506.32819386,0.00028219,2]
[340146881,1728679856474,-529.77619077,0.00028219,2]
[340146882,1728679856483,-520.81641593,0.00028219,2]
[340146883,1728679856491,-500.0,0.00028219,2]
[340146884,1728679856501,-516.06242861,0.00028219,2]
[340146885,1728679856510,-500.0,0.00028219,2]
[340146886,1728679856519,-506.27623685,0.00028219,2]
[340146887,1728679856529,-541.73039819,0.00028219,2]
[340146888,1728679856538,-520.82525329,0.00028219,2]
[340146889,1728679856547,-536.50680359,0.00028219,2]
[340146890,1728679856556,-511.48753771,0.00028219,2]
[340146891,1728679856565,-520.49978517,0.00028219,2]
[340146892,1728679856575,-524.43337072,0.00028219,2]
[340146893,1728679856584,-357.67939922,0.00028219,2]
[340146894,1728679856594,-500.0,0.00028219,2]
[340146895,1728679856606,-533.55716523,0.00028219,2]
[340146896,1728679856615,-510.70271849,0.00028219,2]
[340146897,1728679856625,-521.76320784,0.00028219,2]
[340146898,1728679856635,-510.05315054,0.00028219,2]
[340146899,1728679856644,-514.14984617,0.00028219,2]
[340146900,1728679856654,-500.0,0.00028219,2]
[340146901,1728679856663,-500.0,0.00028219,2]
[340146902,1728679856672,-516.23847689,0.00028219,2]
[340146903,1728679856682,-511.91009489,0.00028219,2]
[340146904,1728679856691,-522.23554956,0.00028219,2]
[340146905,1728679856700,-529.92171108,0.00028219,2]
[340146906,1728679856709,-579.53566049,0.00028219,2]
[340146907,1728679856718,-500.0,0.00028219,2]
[340146908,1728679856728,-500.0,0.00028219,2]
[340146909,1728679856737,-507.87207267,0.00028219,2]
[340146910,1728679856747,-500.0,0.00028219,2]
[340146911,1728679856756,-155.26897324,0.00028219,2]
[340146912,1728679856765,-376.87418638,0.00028219,2]
[340146913,1728679856774,-507.73443182,0.00028219,2]
[340146914,1728679856783,-525.62878963,0.00028219,2]
[340146915,1728679856792,-522.5723631,0.00028219,2]
[340146916,1728679856801,-573.40658018,0.00028219,2]
[340146917,1728679856810,-546.77142907,0.00028219,2]
[340146918,1728679856819,-500.0,0.00028219,2]
[340146919,1728679856828,-555.08,0.00028219,2]
[340146920,1728679856838,-507.08411068,0.00028219,2]
[340146921,1728679856849,-521.71223336,0.00028219,2]
[340146922,1728679856858,-582.55726593,0.00028219,2]
[340146923,1728679856868,-500.0,0.00028219,2]
[340146924,1728679856878,-579.13184848,0.00028219,2]
[340146925,1728679856887,-573.10763617,0.00028219,2]
[340146926,1728679856896,-500.0,0.00028219,2]
[340146927,1728679856905,-512.35092852,0.00028219,2]
[340146928,1728679856913,-508.04976098,0.00028219,2]
[340146929,1728679856922,-521.17904686,0.00028219,2]
[340146930,1728679856933,-509.94167393,0.00028219,2]
[340146931,1728679856942,-500.0,0.00028219,2]
[340146932,1728679856951,-500.0,0.00028219,2]
[340146933,1728679856961,-511.05188313,0.00028219,2]
[340146934,1728679856971,-513.76416855,0.00028219,2]
[340146935,1728679856980,-500.0,0.00028219,2]
[340146936,1728679856991,-577.71734398,0.00028219,2]
[340146937,1728679857001,-331.225246,0.00028219,7]
[340146938,1728679857012,-500.0,0.00028219,2]
[340146939,1728679857021,-508.02524397,0.00028219,2]
[340146940,1728679857031,-523.98547932,0.00028219,2]
[340146941,1728679857043,-510.1325236,0.00028219,2]
[340146942,1728679857053,-532.49473596,0.00028219,2]
[340146943,1728679857063,-500.0,0.00028219,2]
[340146944,1728679857073,-500.0,0.00028219,2]
[340146945,1728679857083,-331.225246,0.00028219,7]
[340146946,1728679857094,-515.4675374,0.00028219,2]
[340146947,1728679857104,-607.89678646,0.00028219,2]
[340146948,1728679857114,-521.46393967,0.00028219,2]
[340146949,1728679857123,-504.73856548,0.00028219,2]
[340146950,1728679857133,-500.0,0.00028219,2]
[340146951,1728679857143,-527.72598833,0.00028219,2]
[340146952,1728679857153,-506.72799028,0.00028219,2]
[340146953,1728679857162,-547.73385646,0.00028219,2]
[340146954,1728679857171,-628.90393056,0.00028219,2]
[340146955,1728679857182,-370.17374514,0.00028219,2]
[340146956,1728679857193,-522.57847502,0.00028219,2]
[340146957,1728679857202,-512.34214086,0.00028219,2]
[340146958,1728679857211,-507.12118901,0.00028219,2]
[340146959,1728679857228,-500.0,0.00028219,2]
[340146960,1728679857237,-151.0,0.00028219,7]
[340146961,1728679857247,-500.0,0.00028219,2]
[340146962,1728679857255,-498.50734845,0.00028219,2]
[340146963,1728679857265,-529.83808176,0.00028219,2]
[340146964,1728679857274,-500.0,0.00028219,2]
[340146965,1728679857283,-520.60753584,0.00028219,2]
[340146966,1728679857293,-500.0,0.00028219,2]
[340146967,1728679857302,-500.0,0.00028219,2]
[340146968,1728679857311,-500.0,0.00028219,2]
[340146969,1728679857320,-515.23324432,0.00028219,2]
[340146970,1728679857329,-500.0,0.00028219,2]
[340146971,1728679857338,-580.06179754,0.00028219,2]
[340146972,1728679857347,-500.0,0.00028219,2]
[340146973,1728679857356,-151.0,0.00028219,7]
[340146974,1728679857365,-510.85736283,0.00028219,2]
[340146975,1728679857375,-507.69568762,0.00028219,2]
[340146976,1728679857385,-352.64604197,0.00028219,2]
[340146977,1728679857394,-500.0,0.00028219,2]
[340146978,1728679857404,-500.0,0.00028219,2]
[340146979,1728679857414,-500.0,0.00028219,2]
[340146980,1728679857423,-483.48329221,0.00028219,2]
[340146981,1728679857438,-306.97814,0.00028219,7]
[340146982,1728679857447,-500.0,0.00028219,2]
[340146983,1728679857457,-599.3700085,0.00028219,2]
[340146984,1728679857466,-511.68186115,0.00028219,2]
[340146985,1728679857476,-500.0,0.00028219,2]
[340146986,1728679857485,-500.0,0.00028219,2]
[340146987,1728679857495,-528.07089146,0.00028219,2]
[340146988,1728679857504,-458.27917703,0.00028219,2]
[340146989,1728679857515,-306.97814,0.00028219,7]
[340146990,1728679857525,-500.0,0.00028219,2]
[340146991,1728679857534,-500.0,0.00028219,2]
[340146992,1728679857544,-500.0,0.00028219,2]
[340146993,1728679857554,-523.29428059,0.00028219,2]
[340146994,1728679857564,-567.30691862,0.00028219,2]
[340146995,1728679857574,-500.0,0.00028219,2]
[340146996,1728679857583,-506.08,0.00028219,2]
[340146997,1728679857593,-515.638942,0.00028219,2]
[340146998,1728679857603,-500.0,0.00028219,2]
[340146999,1728679857614,-516.79908827,0.00028219,2]
[340147000,1728679857623,-531.85575768,0.00028219,2]
[340147001,1728679857633,-512.07827806,0.00028219,2]
[340147002,1728679857643,-500.0,0.00028219,2]
[340147003,1728679857652,-505.88324784,0.00028219,2]
[340147004,1728679857662,-560.15220857,0.00028219,2]
[340147005,1728679857672,-500.0,0.00028219,2]
[340147006,1728679857684,-519.11841681,0.00028219,2]
[340147007,1728679857694,-512.23329146,0.00028219,2]
[340147008,1728679857703,-521.02075886,0.00028219,2]
[340147009,1728679857714,-513.38477156,0.00028219,2]
[340147010,1728679857724,-528.23713883,0.00028219,2]
[340147011,1728679857733,-607.79547073,0.00028219,2]
[340147012,1728679857743,-507.97322018,0.00028219,2]
[340147013,1728679857752,-529.02094421,0.00028219,2]
[340147014,1728679857762,-619.7929372,0.00028219,2]
[340147015,1728679857771,-301.90462731,0.00028219,2]
[340147016,1728679857780,-509.61387781,0.00028219,2]
[340147017,1728679857790,-523.72618718,0.00028219,2]
[340147018,1728679857800,-508.0749599,0.00028219,2]
[340147019,1728679857809,-500.0,0.00028219,2]
[340147020,1728679857818,-151.0,0.00028219,7]
[340147021,1728679857828,-518.70452014,0.00028219,2]
[340147022,1728679857838,-528.31890402,0.00028219,2]
[340147023,1728679857848,-556.9222413,0.00028219,2]
[340147024,1728679857857,-151.0,0.00028219,7]
[340147025,1728679857867,-507.38307442,0.00028219,2]
[340147026,1728679857876,-526.2385909,0.00028219,2]
[340147027,1728679857886,-520.46625403,0.00028219,2]
[340147028,1728679857895,-542.66811467,0.00028219,2]
[340147029,1728679857905,-527.31535792,0.00028219,2]
[340147030,1728679857914,-151.0,0.00028219,7]
[340147031,1728679857923,-573.22489497,0.00028219,2]
[340147032,1728679857934,-523.19143964,0.00028219,2]
[340147033,1728679857943,-541.60609926,0.00028219,2]
[340147034,1728679857953,-512.00936175,0.00028219,2]
[340147035,1728679857963,-500.0,0.00028219,2]
[340147036,1728679857972,-926.335156,0.00028219,7]
[340147037,1728679857982,-500.0,0.00028219,2]
[340147038,1728679857992,-151.0,0.00028219,7]
[340147039,1728679858002,-533.31385276,0.00028219,2]
[340147040,1728679858012,-500.0,0.00028219,2]
[340147041,1728679858021,-320.292292,0.00028219,7]
[340147042,1728679858030,-500.0,0.00028219,2]
[340147043,1728679858040,-926.335156,0.00028219,7]
[340147044,1728679858049,-518.29369527,0.00028219,2]
[340147045,1728679858059,-224.8571615,0.00028219,2]
[340147046,1728679858069,-517.74249053,0.00028219,2]
[340147047,1728679858079,-320.292292,0.00028219,7]
[340147048,1728679858088,-511.51946206,0.00028219,2]
[340147049,1728679858098,-548.61192132,0.00028219,2]
[340147050,1728679858107,-500.0,0.00028219,2]
[340147051,1728679858117,-500.0,0.00028219,2]
[340147052,1728679858126,-516.1785326,0.00028219,2]
[340147053,1728679858136,-518.49832481,0.00028219,2]
[340147054,1728679858146,-500.0,0.00028219,2]
[340147055,1728679858155,-364.45683163,0.00028219,2]
[340147056,1728679858165,-500.0,0.00028219,2]
[340147057,1728679858175,-528.19802939,0.00028219,2]
[340147058,1728679858185,-540.90896202,0.00028219,2]
[340147059,1728679858194,-588.8607424,0.00028219,2]
[340147060,1728679858204,-151.0,0.00028219,7]
[340147061,1728679858213,-500.0,0.00028219,2]
[340147062,1728679858223,-319.55136583,0.00028219,2]
[340147063,1728679858233,-507.56708368,0.00028219,2]
[340147064,1728679858246,-2441.6,0.00028219,2]
[340147065,1728679858256,-500.0,0.00028219,2]
[340147066,1728679858267,-520.01913783,0.00028219,2]
[340147067,1728679858277,-505.52782012,0.00028219,2]
[340147068,1728679858286,-514.09114048,0.00028219,2]
[340147069,1728679858295,-518.43854204,0.00028219,2]
[340147070,1728679858304,-506.37337735,0.00028219,2]
[340147071,1728679858314,-500.0,0.00028219,2]
[340147072,1728679858324,-500.0,0.00028219,2]
[340147073,1728679858335,-619.5985386,0.00028219,2]
[340147074,1728679858348,-505.86175195,0.00028219,2]
[340147075,1728679858358,-500.0,0.00028219,2]
[340147076,1728679858367,-452.81917604,0.00028219,2]
[340147077,1728679858376,-517.66155558,0.00028219,2]
[340147078,1728679858386,-587.65382397,0.00028219,2]
[340147079,1728679858399,-509.11945948,0.00028219,2]
[340147080,1728679858410,-508.47131714,0.00028219,2]
[340147081,1728679858420,-515.87414812,0.00028219,2]
[340147082,1728679858429,-515.67383311,0.00028219,2]
[340147083,1728679858441,-519.99133122,0.00028219,2]
[340147084,1728679858450,-500.0,0.00028219,2]
[340147085,1728679858460,-500.0,0.00028219,2]
[340147086,1728679858470,-506.20312436,0.00028219,2]
[340147087,1728679858479,-508.40831961,0.00028219,2]
[340147088,1728679858489,-500.0,0.00028219,2]
[340147089,1728679858498,-500.0,0.00028219,2]
[340147090,1728679858508,-508.65029136,0.00028219,2]
[340147091,1728679858619,-498.75579136,0.00028219,2]
[340147092,1728679858629,-500.0,0.00028219,2]
[340147093,1728679858639,-641.99668739,0.00028219,2]
[340147094,1728679858649,-508.17566324,0.00028219,2]
[340147095,1728679858658,-518.60150335,0.00028219,2]
[340147096,1728679858667,-520.78599585,0.00028219,2]
[340147097,1728679858676,-151.0,0.00028219,7]
[340147098,1728679858687,-510.11536017,0.00028219,2]
[340147099,1728679858696,-500.0,0.00028219,2]
[340147100,1728679858706,-633.23239643,0.00028219,2]
[340147101,1728679858715,-500.0,0.00028219,2]
[340147102,1728679858725,-422.03918282,0.00028219,2]
[340147103,1728679858734,-513.26388682,0.00028219,2]
[340147104,1728679858743,-500.0,0.00028219,2]
[340147105,1728679858753,-522.62833804,0.00028219,2]
[340147106,1728679858762,-513.26160307,0.00028219,2]
[340147107,1728679858772,-500.0,0.00028219,2]
[340147108,1728679858781,-514.53630284,0.00028219,2]
[340147109,1728679858790,-508.33535896,0.00028219,2]
[340147110,1728679858800,-500.0,0.00028219,2]
[340147111,1728679858809,-500.0,0.00028219,2]
[340147112,1728679858818,-510.08562452,0.00028219,2]
[340147113,1728679858827,-500.0,0.00028219,2]
[340147114,1728679858836,-526.30978617,0.00028219,2]
[340147115,1728679858845,-500.0,0.00028219,2]
[340147116,1728679858855,-507.58252731,0.00028219,2]
[340147117,1728679858864,-500.0,0.00028219,2]
[340147118,1728679858873,-530.46616974,0.00028219,2]
[340147119,1728679858883,-500.0,0.00028219,2]
[340147120,1728679858892,-500.0,0.00028219,2]
[340147121,1728679858901,-513.21745111,0.00028219,2]
[340147122,1728679858910,-500.0,0.00028219,2]
[340147123,1728679858919,-500.0,0.00028219,2]
[340147124,1728679858928,-500.0,0.00028219,2]
[340147125,1728679858938,-1909.0,0.00028665,2]
[340147126,1728679858949,-808.0,0.00028665,2]
[340147127,1728679858958,-150.0,0.00028665,2]
[340147128,1728679858968,-150.0,0.00028665,2]
[340147129,1728679858978,-150.0,0.00028665,2]
[340147130,1728679858987,-239.7217468,0.00029041,2]
[340147131,1728679858996,-500.0,0.00029041,2]
[340147132,1728679859005,-500.0,0.00029041,2]
[340147133,1728679859015,-319.93796925,0.00029041,2]
[340147134,1728679859024,-500.0,0.00029041,2]
[340147135,1728679859034,-500.0,0.00029041,2]
[340147136,1728679859045,-500.0,0.00029041,2]
[340147137,1728679859055,-500.0,0.00029041,2]
[340147138,1728679859067,-500.0,0.00029041,2]
[340147139,1728679859077,-392.84,0.00029041,2]
[340147140,1728679859086,-500.0,0.00029041,2]
[340147141,1728679859095,-500.0,0.00029041,2]
[340147142,1728679859105,-500.0,0.00029041,2]
[340147143,1728679859114,-187.54674696,0.00029041,2]
[340147144,1728679859123,-500.0,0.00029041,2]
[340147145,1728679859133,-500.0,0.00029041,2]
[340147146,1728679859142,-500.0,0.00029041,2]
[340147147,1728679859152,-500.0,0.00029041,2]
[340147148,1728679859161,-500.0,0.00029041,2]
[340147149,1728679859171,-500.0,0.00029041,2]
[340147150,1728679859180,-150.0,0.00029041,2]
[340147151,1728679859191,-230.44056806,0.00029041,2]
[340147152,1728679859201,-500.0,0.00029041,2]
[340147153,1728679859210,-500.0,0.00029041,2]
[340147154,1728679859220,-500.0,0.00029041,2]
[340147155,1728679859229,-500.0,0.00029041,2]
[340147156,1728679859239,-500.0,0.00029041,2]
[340147157,1728679859249,-500.0,0.00029041,2]
[340147158,1728679859258,-500.0,0.00029041,2]
[340147159,1728679859267,-500.0,0.00029041,2]
[340147160,1728679859277,-500.0,0.00029041,2]
[340147161,1728679859286,-626.18,0.00029041,2]
[340147162,1728679859296,-182.98,0.00029041,2]
[340147163,1728679859306,-500.0,0.00029041,2]
[340147164,1728679859316,-500.0,0.00029041,2]
[340147165,1728679859327,-305.69672987,0.00029041,2]
[340147166,1728679859337,-500.0,0.00029041,2]
[340147167,1728679859347,-500.0,0.00029041,2]
[340147168,1728679859356,-500.0,0.00029041,2]
[340147169,1728679859366,-500.0,0.00029041,2]
[340147170,1728679859375,-500.0,0.00029041,2]
[340147171,1728679859385,-500.0,0.00029041,2]
[340147172,1728679859394,-577.99109173,0.00029041,2]
[340147173,1728679859404,-599.05705116,0.00029041,2]
[340147174,1728679859413,-445.30620653,0.00029041,2]
[340147175,1728679859446,-86.65379347,0.00029041,2]
[340147176,1728679859456,-500.0,0.00029041,2]
[340147177,1728679859465,-198.60373747,0.00029041,2]
[340147178,1728679859475,-500.0,0.00029041,2]
[340147179,1728679859484,-500.0,0.00029041,2]
[340147180,1728679859494,-500.0,0.00029041,2]
[340147181,1728679859504,-500.0,0.00029041,2]
[340147182,1728679859513,-500.0,0.00029041,2]
[340147183,1728679859522,-397.98,0.00029041,2]
[340147184,1728679859531,-312.65180694,0.00029041,2]
[340147185,1728679859541,-500.0,0.00029041,2]
[340147186,1728679859550,-526.5,0.00029041,2]
[340147187,1728679859560,-196.51908641,0.00029041,2]
[340147188,1728679859570,-500.0,0.00029041,2]
[340147189,1728679859579,-500.0,0.00029041,2]
[340147190,1728679859588,-500.0,0.00029041,2]
[340147191,1728679859598,-471.48,0.00029041,2]
[340147192,1728679859607,-500.0,0.00029041,2]
[340147193,1728679859617,-557.44,0.00029041,2]
[340147194,1728679859626,-500.0,0.00029041,2]
[340147195,1728679859636,-500.0,0.00029041,2]
[340147196,1728679859645,-500.0,0.00029041,2]
[340147197,1728679859654,-500.0,0.00029041,2]
[340147198,1728679859664,-500.0,0.00029041,2]
[340147199,1728679859673,-169.91900759,0.00029041,2]
[340147200,1728679859683,-506.08,0.00029041,2]
[340147201,1728679859693,-500.0,0.00029041,2]
[340147202,1728679859702,-464.43016513,0.00029041,2]
[340147203,1728679859712,-500.0,0.00029041,2]
[340147204,1728679859721,-500.0,0.00029041,2]
[340147205,1728679859731,-328.02,0.00029041,2]
[340147206,1728679859740,-500.0,0.00029041,2]
[340147207,1728679859749,-170.8,0.00029041,2]
[340147208,1728679859758,-500.0,0.00029041,2]
[340147209,1728679859768,-2441.6,0.00029041,2]
[340147210,1728679859777,-500.0,0.00029041,2]
[340147211,1728679859786,-500.0,0.00029041,2]
[340147212,1728679859796,-500.0,0.00029041,2]
[340147213,1728679859805,-500.0,0.00029041,2]
[340147214,1728679859815,-356.74,0.00029041,2]
[340147215,1728679859825,-562.15514579,0.00029041,2]
[340147216,1728679859834,-500.0,0.00029041,2]
[340147217,1728679859843,-500.0,0.00029041,2]
[340147218,1728679859852,-500.0,0.00029041,2]
[340147219,1728679859862,-500.0,0.00029041,2]
[340147220,1728679859871,-500.0,0.00029041,2]
[340147221,1728679859880,-500.0,0.00029041,2]
[340147222,1728679859890,-500.0,0.00029041,2]
[340147223,1728679859899,-500.0,0.00029155,120]
[340147224,1728679859908,-403.89,0.00029701,2]
[340147225,1728679859917,-500.0,0.00029863,2]
[340147226,1728679859926,-411.72347972,0.00029863,2]
[340147227,1728679859935,-500.0,0.00029863,2]
[340147228,1728679859945,-500.0,0.00029863,2]
[340147229,1728679859954,-500.0,0.00029863,2]
[340147230,1728679859964,-353.04,0.00029863,2]
[340147231,1728679859973,-500.0,0.00029863,2]
[340147232,1728679859983,-610.68006714,0.00029863,2]
[340147233,1728679859992,-500.0,0.00029863,2]
[340147234,1728679860002,-500.0,0.00029863,2]
[340147235,1728679860011,-500.0,0.00029863,2]
[340147236,1728679860021,-491.82,0.00029863,2]
[340147237,1728679860031,-500.0,0.00029863,2]
[340147238,1728679860040,-500.0,0.00029863,2]
[340147239,1728679860050,-500.0,0.00029863,2]
[340147240,1728679860059,-634.53822567,0.00029863,2]
[340147241,1728679860069,-150.0,0.00029863,2]
[340147242,1728679860079,-500.0,0.00029863,2]
[340147243,1728679860088,-500.0,0.00029863,2]
[340147244,1728679860098,-500.0,0.00029863,2]
[340147245,1728679860108,-458.6,0.00029863,2]
[340147246,1728679860118,-500.0,0.00029863,2]
[340147247,1728679860128,-500.0,0.00029863,2]
[340147248,1728679860138,-500.0,0.00029863,2]
[340147249,1728679860148,-500.0,0.00029863,2]
[340147250,1728679860157,-500.0,0.00029863,2]
[340147251,1728679860167,-500.0,0.00029863,2]
[340147252,1728679860176,-500.0,0.00029863,2]
[340147253,1728679860186,-500.0,0.00029863,2]
[340147254,1728679860195,-537.14687115,0.00029863,2]
[340147255,1728679860204,-501.6,0.00029863,2]
[340147256,1728679860213,-500.0,0.00029863,2]
[340147257,1728679860223,-181.84998091,0.00029863,2]
[340147258,1728679860233,-500.0,0.00029863,2]
[340147259,1728679860242,-500.0,0.00029863,2]
[340147260,1728679860251,-500.0,0.00029863,2]
[340147261,1728679860261,-500.0,0.00029863,2]
[340147262,1728679860270,-500.0,0.00029863,2]
[340147263,1728679860280,-500.0,0.00029863,2]
[340147264,1728679860290,-404.18,0.00029863,2]
[340147265,1728679860299,-500.0,0.00029863,2]
[340147266,1728679860309,-526.5,0.00029863,2]
[340147267,1728679860318,-500.0,0.00029863,2]
[340147268,1728679860330,-500.0,0.00029863,2]
[340147269,1728679860340,-500.0,0.00029863,2]
[340147270,1728679860350,-500.0,0.00029863,2]
[340147271,1728679860360,-500.0,0.00029863,2]
[340147272,1728679860369,-500.0,0.00029863,2]
[340147273,1728679860380,-500.0,0.00029863,2]
[340147274,1728679860389,-500.0,0.00029863,2]
[340147275,1728679860398,-500.0,0.00029863,2]
[340147276,1728679860410,-506.08,0.00029863,2]
[340147277,1728679860419,-500.0,0.00029863,2]
[340147278,1728679860429,-500.0,0.00029863,2]
[340147279,1728679860443,-500.0,0.00029863,2]
[340147280,1728679860452,-500.0,0.00029863,2]
[340147281,1728679860461,-500.0,0.00029863,2]
[340147282,1728679860470,-2441.6,0.00029863,2]
[340147283,1728679860479,-500.0,0.00029863,2]
[340147284,1728679860489,-500.0,0.00029863,2]
[340147285,1728679860499,-500.0,0.00029863,2]
[340147286,1728679860509,-500.0,0.00029863,2]
[340147287,1728679860519,-500.0,0.00029863,2]
[340147288,1728679860528,-500.0,0.00029863,2]
[340147289,1728679860537,-500.0,0.00029863,2]
[340147290,1728679860547,-500.0,0.00029863,2]
[340147291,1728679860557,-500.0,0.00029863,2]
[340147292,1728679860566,-500.0,0.00029863,2]
[340147293,1728679860575,-500.0,0.00029863,2]
[340147294,1728679860584,-10637.4779548,0.0003,2]
[340147295,1728679860593,-15293.86970164,0.0003,2]
[340147296,1728679860602,-200.44774273,0.0003,14]
[340147297,1728679860611,-1720.76531593,0.0003,2]
[340147298,1728679860620,-1010.26909234,0.0003,2]
[340147299,1728679860629,-43440.43196983,0.0003,2]
[340147300,1728679860639,-1444.48450907,0.0003,2]
[340147301,1728679860649,-1050.0,0.0003,2]
[340147302,1728679860658,-1041.38703169,0.0003,2]
[340147303,1728679860667,-1125.0,0.00030136,2]
[340147304,1728679860677,-1402.0,0.000302,2]
[340147305,1728679860690,-151.0,0.000302,7]
[340147306,1728679860700,-285.541522,0.000302,7]
[340147307,1728679860709,-285.541522,0.000302,7]
[340147308,1728679860718,-500.0,0.00030684,2]
[340147309,1728679860728,-500.0,0.00030684,2]
[340147310,1728679860738,-500.0,0.00030684,2]
[340147311,1728679860748,-500.0,0.00030684,2]
[340147312,1728679860757,-500.0,0.00030684,2]
[340147313,1728679860766,-500.0,0.00030684,2]
[340147314,1728679860776,-500.0,0.00030684,2]
[340147315,1728679860786,-500.0,0.00030684,2]
[340147316,1728679860795,-500.0,0.00030684,2]